[Event "Titled Tuesday Blitz March 22 Late 2022"]
[White "Piliczewski, Bogusz"]
[Black "Al-Tarboush, Ward"]
[WhiteFideId "1104144"]
[BlackFideId "7601450"]
[WhiteElo "1896"]
[BlackElo "2276"]
[Result "0-1"]
[Round "01"]
[TimeControl "180+1"]
[Date "2022.03.22"]
[WhiteClock "0:00:08"]
[BlackClock "0:00:24"]

1. d4 {[%clk 0:03:00]}  d5 {[%clk 0:02:58]} 2. Nf3 {[%clk 0:03:01]}  Nf6 {[%clk 0:02:57]} 3. Bf4 {[%clk 0:03:00]}  c5 {[%clk 0:02:54]} 4. c3 {[%clk 0:02:59]}  cxd4 {[%clk 0:02:46]} 5. cxd4 {[%clk 0:02:58]}  Bf5 {[%clk 0:02:45]} 6. Nc3 {[%clk 0:02:58]}  Nc6 {[%clk 0:02:42]} 7. e3 {[%clk 0:02:58]}  e6 {[%clk 0:02:42]} 8. Be2 {[%clk 0:02:56]}  Be7 {[%clk 0:02:39]} 9. O-O {[%clk 0:02:55]}  O-O {[%clk 0:02:39]} 10. a3 {[%clk 0:02:54]}  Rc8 {[%clk 0:02:37]} 11. Rc1 {[%clk 0:02:51]}  Na5 {[%clk 0:02:36]} 12. b4 {[%clk 0:02:50]}  Nc4 {[%clk 0:02:36]} 13. Bxc4 {[%clk 0:02:38]}  Rxc4 {[%clk 0:02:37]} 14. Ne5 {[%clk 0:02:32]}  Rc8 {[%clk 0:02:36]} 15. Qa4 {[%clk 0:02:28]}  a6 {[%clk 0:02:34]} 16. Qb3 {[%clk 0:02:13]}  Nh5 {[%clk 0:02:31]} 17. a4 {[%clk 0:02:03]}  Nxf4 {[%clk 0:02:30]} 18. exf4 {[%clk 0:02:03]}  Qd6 {[%clk 0:02:27]} 19. b5 {[%clk 0:01:58]}  f6 {[%clk 0:02:26]} 20. g4 {[%clk 0:01:47]}  fxe5 {[%clk 0:02:10]} 21. dxe5 {[%clk 0:01:44]}  Qd7 {[%clk 0:02:06]} 22. gxf5 {[%clk 0:01:43]}  Rxf5 {[%clk 0:02:07]} 23. Ne2 {[%clk 0:01:35]}  Rcf8 {[%clk 0:02:03]} 24. b6 {[%clk 0:01:29]}  Qe8 {[%clk 0:02:02]} 25. Rc7 {[%clk 0:01:24]}  Bh4 {[%clk 0:01:39]} 26. Qf3 {[%clk 0:01:15]}  Qg6+ {[%clk 0:01:37]} 27. Kh1 {[%clk 0:01:14]}  R5f7 {[%clk 0:01:32]} 28. Rg1 {[%clk 0:01:12]}  Qf5 {[%clk 0:01:25]} 29. Qg4 {[%clk 0:01:09]}  Qxg4 {[%clk 0:01:23]} 30. Rxg4 {[%clk 0:01:09]}  Bxf2 {[%clk 0:01:23]} 31. a5 {[%clk 0:01:01]}  Be1 {[%clk 0:01:22]} 32. Rg1 {[%clk 0:00:54]}  Bxa5 {[%clk 0:01:21]} 33. Rxf7 {[%clk 0:00:51]}  Rxf7 {[%clk 0:01:16]} 34. Rb1 {[%clk 0:00:46]}  Rf8 {[%clk 0:01:01]} 35. Nd4 {[%clk 0:00:44]}  Rxf4 {[%clk 0:00:45]} 36. Nxe6 {[%clk 0:00:43]}  Rb4 {[%clk 0:00:27]} 37. Rxb4 {[%clk 0:00:40]}  Bxb4 {[%clk 0:00:28]} 38. Nd8 {[%clk 0:00:34]}  Bc5 {[%clk 0:00:24]} 39. Nxb7 {[%clk 0:00:30]}  Bxb6 {[%clk 0:00:24]} 40. Nd6 {[%clk 0:00:20]}  Bc7 {[%clk 0:00:20]} 41. Kg2 {[%clk 0:00:13]}  Bxd6 {[%clk 0:00:20]} 42. exd6 {[%clk 0:00:13]}  Kf7 {[%clk 0:00:20]} 43. Kf3 {[%clk 0:00:13]}  Ke6 {[%clk 0:00:20]} 44. Ke3 {[%clk 0:00:13]}  Kxd6 {[%clk 0:00:21]} 45. Kd4 {[%clk 0:00:14]}  a5 {[%clk 0:00:21]} 46. Kc3 {[%clk 0:00:14]}  Kc5 {[%clk 0:00:22]} 47. Kd3 {[%clk 0:00:14]}  a4 {[%clk 0:00:22]} 48. Kc3 {[%clk 0:00:14]}  d4+ {[%clk 0:00:22]} 49. Kd3 {[%clk 0:00:13]}  a3 {[%clk 0:00:21]} 50. Kc2 {[%clk 0:00:13]}  Kc4 {[%clk 0:00:22]} 51. Kb1 {[%clk 0:00:13]}  d3 {[%clk 0:00:23]} 52. Ka2 {[%clk 0:00:12]}  d2 {[%clk 0:00:23]} 53. Kxa3 {[%clk 0:00:10]}  d1=Q {[%clk 0:00:23]} 54. Ka2 {[%clk 0:00:09]}  Qb3+ {[%clk 0:00:23]} 55. Ka1 {[%clk 0:00:09]}  Qb4 {[%clk 0:00:23]} 56. Ka2 {[%clk 0:00:08]}  Kc3 {[%clk 0:00:24]} 57. Ka1 {[%clk 0:00:08]}  Qb2# {[%clk 0:00:24]} 0-1


[Site "https://www.chess.com"]

[Event "Titled Tuesday Blitz March 22 Late 2022"]
[White "Rabineau, Clement"]
[Black "Sapunov, Evgeny"]
[WhiteFideId "628891"]
[BlackFideId "4126661"]
[WhiteElo "2237"]
[BlackElo "2470"]
[Result "0-1"]
[Round "01"]
[TimeControl "180+1"]
[Date "2022.03.22"]
[WhiteClock "0:00:52"]
[BlackClock "0:02:19"]

1. e4 {[%clk 0:03:00]}  c5 {[%clk 0:02:59]} 2. c3 {[%clk 0:03:01]}  Nf6 {[%clk 0:02:59]} 3. e5 {[%clk 0:03:01]}  Nd5 {[%clk 0:02:59]} 4. Bc4 {[%clk 0:03:01]}  e6 {[%clk 0:02:59]} 5. Nf3 {[%clk 0:03:00]}  Nc6 {[%clk 0:02:59]} 6. O-O {[%clk 0:02:58]}  d6 {[%clk 0:02:59]} 7. d4 {[%clk 0:02:39]}  cxd4 {[%clk 0:02:59]} 8. cxd4 {[%clk 0:02:39]}  Be7 {[%clk 0:02:59]} 9. Bd2 {[%clk 0:02:25]}  O-O {[%clk 0:02:57]} 10. Qe2 {[%clk 0:01:39]}  a6 {[%clk 0:02:56]} 11. Nc3 {[%clk 0:01:38]}  Nxc3 {[%clk 0:02:56]} 12. Bxc3 {[%clk 0:01:39]}  dxe5 {[%clk 0:02:54]} 13. dxe5 {[%clk 0:01:37]}  b5 {[%clk 0:02:54]} 14. Bd3 {[%clk 0:01:14]}  Bb7 {[%clk 0:02:52]} 15. Rad1 {[%clk 0:01:07]}  Qb6 {[%clk 0:02:52]} 16. Qe4 {[%clk 0:00:59]}  g6 {[%clk 0:02:51]} 17. Qf4 {[%clk 0:00:51]}  Rad8 {[%clk 0:02:20]} 18. Rc1 {[%clk 0:00:52]}  Rxd3 {[%clk 0:02:19]} 0-1


[Site "https://www.chess.com"]

[Event "Titled Tuesday Blitz March 22 Late 2022"]
[White "Rangel, Daniel"]
[Black "Aravindh, Chithambaram VR."]
[WhiteFideId "2124475"]
[BlackFideId "5072786"]
[WhiteElo "2225"]
[BlackElo "2561"]
[Result "0-1"]
[Round "01"]
[TimeControl "180+1"]
[Date "2022.03.22"]
[WhiteClock "0:00:38"]
[BlackClock "0:02:22"]

1. c4 {[%clk 0:02:59]}  g6 {[%clk 0:03:00]} 2. g3 {[%clk 0:02:57]}  Bg7 {[%clk 0:03:00]} 3. Bg2 {[%clk 0:02:58]}  h5 {[%clk 0:03:00]} 4. Nc3 {[%clk 0:02:56]}  h4 {[%clk 0:03:00]} 5. d4 {[%clk 0:02:56]}  d6 {[%clk 0:03:00]} 6. Bg5 {[%clk 0:02:50]}  h3 {[%clk 0:02:58]} 7. Bf3 {[%clk 0:02:47]}  c6 {[%clk 0:02:55]} 8. e4 {[%clk 0:02:43]}  Qb6 {[%clk 0:02:52]} 9. Nge2 {[%clk 0:02:35]}  Nf6 {[%clk 0:02:50]} 10. O-O {[%clk 0:02:18]}  Nbd7 {[%clk 0:02:49]} 11. Rb1 {[%clk 0:02:14]}  e5 {[%clk 0:02:47]} 12. b4 {[%clk 0:02:07]}  exd4 {[%clk 0:02:45]} 13. Nxd4 {[%clk 0:02:04]}  Ne5 {[%clk 0:02:45]} 14. b5 {[%clk 0:00:59]}  Qxd4 {[%clk 0:02:43]} 15. bxc6 {[%clk 0:00:53]}  Qxc3 {[%clk 0:02:26]} 16. cxb7 {[%clk 0:00:45]}  Bxb7 {[%clk 0:02:24]} 17. Rxb7 {[%clk 0:00:38]}  Nxf3+ {[%clk 0:02:23]} 18. Kh1 {[%clk 0:00:38]}  Nxg5 {[%clk 0:02:23]} 19. Qxd6 {[%clk 0:00:38]}  Qf3+ {[%clk 0:02:22]} 0-1


[Site "https://www.chess.com"]

[Event "Titled Tuesday Blitz March 22 Late 2022"]
[White "Romanchuk, Viktor"]
[Black "Sarana, Alexey"]
[WhiteFideId "14109271"]
[BlackFideId "24133795"]
[WhiteElo "2242"]
[BlackElo "2666"]
[Result "0-1"]
[Round "01"]
[TimeControl "180+1"]
[Date "2022.03.22"]
[WhiteClock "0:00:57"]
[BlackClock "0:01:54"]

1. d4 {[%clk 0:02:58]}  Nf6 {[%clk 0:02:57]} 2. c4 {[%clk 0:02:57]}  e6 {[%clk 0:02:57]} 3. Nc3 {[%clk 0:02:57]}  Bb4 {[%clk 0:02:57]} 4. e3 {[%clk 0:02:56]}  O-O {[%clk 0:02:56]} 5. Ne2 {[%clk 0:02:55]}  d5 {[%clk 0:02:54]} 6. a3 {[%clk 0:02:55]}  Be7 {[%clk 0:02:54]} 7. cxd5 {[%clk 0:02:55]}  exd5 {[%clk 0:02:54]} 8. Nf4 {[%clk 0:02:56]}  c6 {[%clk 0:02:53]} 9. Bd3 {[%clk 0:02:56]}  Nbd7 {[%clk 0:02:53]} 10. O-O {[%clk 0:02:55]}  Re8 {[%clk 0:02:54]} 11. f3 {[%clk 0:02:55]}  Nf8 {[%clk 0:02:53]} 12. Kh1 {[%clk 0:02:54]}  c5 {[%clk 0:02:53]} 13. dxc5 {[%clk 0:02:50]}  Bxc5 {[%clk 0:02:54]} 14. Ncxd5 {[%clk 0:02:48]}  Nxd5 {[%clk 0:02:53]} 15. Nxd5 {[%clk 0:02:47]}  Be6 {[%clk 0:02:41]} 16. e4 {[%clk 0:02:35]}  Bxd5 {[%clk 0:02:40]} 17. exd5 {[%clk 0:02:36]}  Bd6 {[%clk 0:02:40]} 18. g3 {[%clk 0:02:28]}  Rc8 {[%clk 0:02:41]} 19. Bd2 {[%clk 0:02:23]}  Be5 {[%clk 0:02:34]} 20. Qb3 {[%clk 0:02:20]}  b6 {[%clk 0:02:21]} 21. Bb5 {[%clk 0:02:13]}  Re7 {[%clk 0:02:21]} 22. Rfe1 {[%clk 0:02:11]}  Bd6 {[%clk 0:02:13]} 23. Bc3 {[%clk 0:02:07]}  Ng6 {[%clk 0:02:11]} 24. Kg2 {[%clk 0:02:06]}  h5 {[%clk 0:02:10]} 25. Rxe7 {[%clk 0:02:05]}  Qxe7 {[%clk 0:02:11]} 26. Re1 {[%clk 0:02:05]}  Qg5 {[%clk 0:02:11]} 27. Re8+ {[%clk 0:01:35]}  Rxe8 {[%clk 0:02:10]} 28. Bxe8 {[%clk 0:01:36]}  h4 {[%clk 0:02:09]} 29. Be1 {[%clk 0:01:35]}  Qe5 {[%clk 0:02:02]} 30. Bxf7+ {[%clk 0:01:27]}  Kxf7 {[%clk 0:02:02]} 31. Bf2 {[%clk 0:01:27]}  Qe2 {[%clk 0:02:00]} 32. Qa4 {[%clk 0:01:19]}  h3+ {[%clk 0:01:53]} 33. Kxh3 {[%clk 0:01:17]}  Qf1+ {[%clk 0:01:54]} 34. Kg4 {[%clk 0:01:14]}  Ne5+ {[%clk 0:01:54]} 35. Kf5 {[%clk 0:01:13]}  Qxf2 {[%clk 0:01:54]} 36. Qxa7+ {[%clk 0:01:09]}  Kg8 {[%clk 0:01:54]} 37. f4 {[%clk 0:01:07]}  Qc2+ {[%clk 0:01:53]} 38. Kg5 {[%clk 0:00:57]}  Qg6+ {[%clk 0:01:53]} 39. Kh4 {[%clk 0:00:57]}  Qg4# {[%clk 0:01:54]} 0-1


[Site "https://www.chess.com"]

[Event "Titled Tuesday Blitz March 22 Late 2022"]
[White "Romero Ruscalleda, Josep"]
[Black "Arabidze, Meri"]
[WhiteFideId "2231859"]
[BlackFideId "13604040"]
[WhiteElo "2268"]
[BlackElo "2335"]
[Result "0-1"]
[Round "01"]
[TimeControl "180+1"]
[Date "2022.03.22"]
[WhiteClock "0:00:57"]
[BlackClock "0:00:25"]

1. e4 {[%clk 0:03:00]}  c5 {[%clk 0:02:57]} 2. c3 {[%clk 0:03:00]}  e6 {[%clk 0:02:58]} 3. d4 {[%clk 0:03:00]}  d5 {[%clk 0:02:58]} 4. e5 {[%clk 0:03:00]}  Nc6 {[%clk 0:02:53]} 5. Be3 {[%clk 0:02:58]}  Qb6 {[%clk 0:02:50]} 6. Qd2 {[%clk 0:02:58]}  Nh6 {[%clk 0:02:46]} 7. Nf3 {[%clk 0:02:57]}  Nf5 {[%clk 0:02:46]} 8. Bd3 {[%clk 0:02:57]}  cxd4 {[%clk 0:02:43]} 9. cxd4 {[%clk 0:02:54]}  Nxe3 {[%clk 0:02:31]} 10. fxe3 {[%clk 0:02:54]}  Nb4 {[%clk 0:02:32]} 11. Be2 {[%clk 0:02:53]}  Bd7 {[%clk 0:02:19]} 12. Nc3 {[%clk 0:02:52]}  Be7 {[%clk 0:02:07]} 13. O-O {[%clk 0:02:52]}  f5 {[%clk 0:02:05]} 14. exf6 {[%clk 0:02:40]}  Bxf6 {[%clk 0:02:04]} 15. a3 {[%clk 0:02:33]}  Nc6 {[%clk 0:02:03]} 16. Na4 {[%clk 0:02:32]}  Qa5 {[%clk 0:01:59]} 17. Qxa5 {[%clk 0:02:31]}  Nxa5 {[%clk 0:02:00]} 18. Nc5 {[%clk 0:02:32]}  b6 {[%clk 0:01:57]} 19. Nxd7 {[%clk 0:02:26]}  Kxd7 {[%clk 0:01:58]} 20. Bb5+ {[%clk 0:02:23]}  Kd6 {[%clk 0:01:57]} 21. Rac1 {[%clk 0:02:14]}  Rac8 {[%clk 0:01:55]} 22. Nd2 {[%clk 0:02:14]}  Bg5 {[%clk 0:01:53]} 23. Kf2 {[%clk 0:02:08]}  Rhf8+ {[%clk 0:01:47]} 24. Ke2 {[%clk 0:02:08]}  Rxf1 {[%clk 0:01:47]} 25. Rxc8 {[%clk 0:02:02]}  Rg1 {[%clk 0:01:40]} 26. Kf2 {[%clk 0:01:47]}  Rd1 {[%clk 0:01:40]} 27. Nf3 {[%clk 0:01:45]}  Bf6 {[%clk 0:01:38]} 28. b4 {[%clk 0:01:40]}  Nc4 {[%clk 0:01:14]} 29. Bxc4 {[%clk 0:01:39]}  dxc4 {[%clk 0:01:15]} 30. Rxc4 {[%clk 0:01:38]}  Ra1 {[%clk 0:01:06]} 31. Rc3 {[%clk 0:01:37]}  Ra2+ {[%clk 0:01:05]} 32. Kg3 {[%clk 0:01:37]}  Kd5 {[%clk 0:00:57]} 33. Kf4 {[%clk 0:01:22]}  g5+ {[%clk 0:00:57]} 34. Nxg5 {[%clk 0:01:20]}  Bxg5+ {[%clk 0:00:57]} 35. Kxg5 {[%clk 0:01:20]}  Rxg2+ {[%clk 0:00:58]} 36. Kf4 {[%clk 0:01:21]}  Rxh2 {[%clk 0:00:57]} 37. e4+ {[%clk 0:01:21]}  Kxd4 {[%clk 0:00:54]} 38. Rc7 {[%clk 0:01:20]}  e5+ {[%clk 0:00:51]} 39. Kf3 {[%clk 0:01:18]}  Rh3+ {[%clk 0:00:50]} 40. Kg4 {[%clk 0:01:16]}  Rxa3 {[%clk 0:00:50]} 41. Rxh7 {[%clk 0:01:16]}  Kxe4 {[%clk 0:00:50]} 42. Rb7 {[%clk 0:01:15]}  Ke3 {[%clk 0:00:47]} 43. Kf5 {[%clk 0:01:15]}  e4 {[%clk 0:00:42]} 44. Re7 {[%clk 0:01:14]}  Kd3 {[%clk 0:00:30]} 45. Rxe4 {[%clk 0:01:14]}  Kc3 {[%clk 0:00:31]} 46. b5 {[%clk 0:01:06]}  Ra5 {[%clk 0:00:29]} 47. Re7 {[%clk 0:00:58]}  Kc4 {[%clk 0:00:28]} 48. Ke4 {[%clk 0:00:59]}  Kxb5 {[%clk 0:00:28]} 49. Kd5 {[%clk 0:00:58]}  Ra1 {[%clk 0:00:26]} 50. Re2 {[%clk 0:00:57]}  Rd1+ {[%clk 0:00:26]} 51. Ke4 {[%clk 0:00:57]}  a5 {[%clk 0:00:26]} 52. Rb2+ {[%clk 0:00:57]}  Ka6 {[%clk 0:00:26]} 53. Ke3 {[%clk 0:00:57]}  b5 {[%clk 0:00:26]} 54. Ke2 {[%clk 0:00:58]}  Rd8 {[%clk 0:00:25]} 55. Ke3 {[%clk 0:00:57]}  a4 {[%clk 0:00:25]} 0-1


[Site "https://www.chess.com"]

[Event "Titled Tuesday Blitz March 22 Late 2022"]
[White "Rustemov, Alexander"]
[Black "Martinez Reyes, Pedro Ramon"]
[WhiteFideId "4119002"]
[BlackFideId "3901807"]
[WhiteElo "2797"]
[BlackElo "2410"]
[Result "1-0"]
[Round "01"]
[TimeControl "180+1"]
[Date "2022.03.22"]
[WhiteClock "0:01:45"]
[BlackClock "0:00:48"]

1. d4 {[%clk 0:03:00]}  Nf6 {[%clk 0:02:57]} 2. c4 {[%clk 0:03:01]}  d5 {[%clk 0:02:57]} 3. cxd5 {[%clk 0:03:00]}  c6 {[%clk 0:02:57]} 4. dxc6 {[%clk 0:02:59]}  Nxc6 {[%clk 0:02:58]} 5. Nf3 {[%clk 0:02:59]}  e5 {[%clk 0:02:58]} 6. e3 {[%clk 0:03:00]}  exd4 {[%clk 0:02:52]} 7. exd4 {[%clk 0:02:58]}  Bb4+ {[%clk 0:02:52]} 8. Nc3 {[%clk 0:02:57]}  Ne4 {[%clk 0:02:51]} 9. Bd2 {[%clk 0:02:52]}  Nxd2 {[%clk 0:02:49]} 10. Qxd2 {[%clk 0:02:51]}  O-O {[%clk 0:02:45]} 11. Be2 {[%clk 0:02:52]}  Bg4 {[%clk 0:02:45]} 12. d5 {[%clk 0:02:51]}  Bxf3 {[%clk 0:02:45]} 13. Bxf3 {[%clk 0:02:51]}  Re8+ {[%clk 0:02:36]} 14. Be2 {[%clk 0:02:51]}  Bxc3 {[%clk 0:02:27]} 15. bxc3 {[%clk 0:02:50]}  Ne7 {[%clk 0:02:27]} 16. c4 {[%clk 0:02:49]}  Nf5 {[%clk 0:02:25]} 17. O-O {[%clk 0:02:48]}  Rc8 {[%clk 0:02:22]} 18. Rac1 {[%clk 0:02:36]}  Qh4 {[%clk 0:02:16]} 19. c5 {[%clk 0:02:34]}  Nd4 {[%clk 0:02:09]} 20. Rfe1 {[%clk 0:02:21]}  Qe4 {[%clk 0:01:57]} 21. Bc4 {[%clk 0:02:20]}  Qg6 {[%clk 0:01:50]} 22. Qf4 {[%clk 0:02:06]}  Rxe1+ {[%clk 0:01:10]} 23. Rxe1 {[%clk 0:02:05]}  Nc2 {[%clk 0:01:11]} 24. Re2 {[%clk 0:01:54]}  b5 {[%clk 0:00:57]} 25. Bb3 {[%clk 0:01:47]}  Nd4 {[%clk 0:00:48]} 26. Qxd4 {[%clk 0:01:45]} 1-0


[Site "https://www.chess.com"]

[Event "Titled Tuesday Blitz March 22 Late 2022"]
[White "Sanchez Alvares, Kelvin Antonio"]
[Black "Cavanah, Troy"]
[WhiteFideId "3906680"]
[BlackFideId "30949670"]
[WhiteElo "2193"]
[BlackElo "1878"]
[Result "0-1"]
[Round "01"]
[TimeControl "180+1"]
[Date "2022.03.22"]
[WhiteClock "0:01:02"]
[BlackClock "0:00:38"]

1. e4 {[%clk 0:03:00]}  c5 {[%clk 0:02:59]} 2. Nf3 {[%clk 0:02:21]}  d6 {[%clk 0:02:58]} 3. d4 {[%clk 0:02:22]}  cxd4 {[%clk 0:02:59]} 4. Nxd4 {[%clk 0:02:22]}  Nf6 {[%clk 0:02:58]} 5. f3 {[%clk 0:02:22]}  e5 {[%clk 0:02:58]} 6. Nb3 {[%clk 0:02:21]}  Be6 {[%clk 0:02:53]} 7. c4 {[%clk 0:02:19]}  Nbd7 {[%clk 0:02:53]} 8. Nc3 {[%clk 0:02:18]}  Rc8 {[%clk 0:02:50]} 9. Nd5 {[%clk 0:02:17]}  Bxd5 {[%clk 0:02:42]} 10. cxd5 {[%clk 0:02:18]}  Be7 {[%clk 0:02:42]} 11. Be3 {[%clk 0:02:17]}  a5 {[%clk 0:02:36]} 12. Bb5 {[%clk 0:02:13]}  O-O {[%clk 0:02:35]} 13. O-O {[%clk 0:02:06]}  Ne8 {[%clk 0:02:22]} 14. Qd2 {[%clk 0:02:00]}  b6 {[%clk 0:02:13]} 15. Bc6 {[%clk 0:01:55]}  Nc5 {[%clk 0:02:08]} 16. Rfc1 {[%clk 0:01:45]}  f5 {[%clk 0:02:03]} 17. Nxc5 {[%clk 0:01:39]}  dxc5 {[%clk 0:01:49]} 18. a3 {[%clk 0:01:32]}  f4 {[%clk 0:01:30]} 19. Bf2 {[%clk 0:01:28]}  Bh4 {[%clk 0:01:29]} 20. b4 {[%clk 0:01:25]}  Bxf2+ {[%clk 0:00:53]} 21. Qxf2 {[%clk 0:01:24]}  axb4 {[%clk 0:00:52]} 22. axb4 {[%clk 0:01:12]}  cxb4 {[%clk 0:00:52]} 23. Rcb1 {[%clk 0:01:10]}  Qd6 {[%clk 0:00:45]} 24. Qd2 {[%clk 0:01:08]}  Rxc6 {[%clk 0:00:42]} 25. Qxb4 {[%clk 0:01:02]}  Rc1+ {[%clk 0:00:38]} 0-1


[Site "https://www.chess.com"]

[Event "Titled Tuesday Blitz March 22 Late 2022"]
[White "Sharafiev, Azat"]
[Black "Mangialardo, Tiago Carvalho"]
[WhiteFideId "4186214"]
[BlackFideId "2130718"]
[WhiteElo "2299"]
[BlackElo "2090"]
[Result "1-0"]
[Round "01"]
[TimeControl "180+1"]
[Date "2022.03.22"]
[WhiteClock "0:01:57"]
[BlackClock "0:00:40"]

1. d4 {[%clk 0:02:58]}  d5 {[%clk 0:02:57]} 2. Nf3 {[%clk 0:02:57]}  Nf6 {[%clk 0:02:57]} 3. c4 {[%clk 0:02:57]}  e6 {[%clk 0:02:55]} 4. g3 {[%clk 0:02:57]}  Be7 {[%clk 0:02:55]} 5. Bg2 {[%clk 0:02:57]}  O-O {[%clk 0:02:55]} 6. O-O {[%clk 0:02:58]}  Nbd7 {[%clk 0:02:55]} 7. Nbd2 {[%clk 0:02:55]}  b6 {[%clk 0:02:48]} 8. cxd5 {[%clk 0:02:55]}  exd5 {[%clk 0:02:44]} 9. Ne5 {[%clk 0:02:53]}  Bb7 {[%clk 0:02:24]} 10. Qa4 {[%clk 0:02:53]}  c5 {[%clk 0:02:16]} 11. Nc6 {[%clk 0:02:47]}  Bxc6 {[%clk 0:02:12]} 12. Qxc6 {[%clk 0:02:47]}  Qc8 {[%clk 0:02:01]} 13. Qxc8 {[%clk 0:02:46]}  Rfxc8 {[%clk 0:02:00]} 14. dxc5 {[%clk 0:02:43]}  Rxc5 {[%clk 0:01:55]} 15. Nb3 {[%clk 0:02:42]}  Rc2 {[%clk 0:01:49]} 16. Nd4 {[%clk 0:02:42]}  Rc4 {[%clk 0:01:46]} 17. Nf5 {[%clk 0:02:34]}  Bf8 {[%clk 0:01:34]} 18. b3 {[%clk 0:02:33]}  Rc2 {[%clk 0:01:25]} 19. Ne3 {[%clk 0:02:25]}  Rc7 {[%clk 0:01:09]} 20. Nxd5 {[%clk 0:02:23]}  Nxd5 {[%clk 0:01:01]} 21. Bxd5 {[%clk 0:02:24]}  Rac8 {[%clk 0:01:01]} 22. Bf4 {[%clk 0:02:11]}  Rc5 {[%clk 0:00:58]} 23. Bb7 {[%clk 0:02:07]}  Rd8 {[%clk 0:00:55]} 24. Rfd1 {[%clk 0:02:06]}  g5 {[%clk 0:00:46]} 25. Be3 {[%clk 0:02:03]}  Rc7 {[%clk 0:00:45]} 26. Bxg5 {[%clk 0:02:01]}  f6 {[%clk 0:00:42]} 27. Bd5+ {[%clk 0:01:59]}  Kg7 {[%clk 0:00:42]} 28. Bf4 {[%clk 0:01:59]}  Rc5 {[%clk 0:00:40]} 29. Be6 {[%clk 0:01:57]} 1-0


[Site "https://www.chess.com"]

[Event "Titled Tuesday Blitz March 22 Late 2022"]
[White "Taboas Rodriguez, Daniel"]
[Black "Broca Jimenez, Fernando"]
[WhiteFideId "2208466"]
[BlackFideId "5104742"]
[WhiteElo "2429"]
[BlackElo "2062"]
[Result "1-0"]
[Round "01"]
[TimeControl "180+1"]
[Date "2022.03.22"]
[WhiteClock "0:00:37"]
[BlackClock "0:00:09"]

1. d4 {[%clk 0:02:59]}  Nf6 {[%clk 0:02:55]} 2. Nf3 {[%clk 0:03:00]}  e6 {[%clk 0:02:54]} 3. c4 {[%clk 0:03:01]}  d5 {[%clk 0:02:50]} 4. Bg5 {[%clk 0:03:00]}  Nbd7 {[%clk 0:02:47]} 5. Nc3 {[%clk 0:03:00]}  Be7 {[%clk 0:02:47]} 6. e3 {[%clk 0:03:00]}  h6 {[%clk 0:02:46]} 7. Bh4 {[%clk 0:03:00]}  O-O {[%clk 0:02:45]} 8. Rc1 {[%clk 0:03:00]}  c6 {[%clk 0:02:40]} 9. Bd3 {[%clk 0:02:58]}  dxc4 {[%clk 0:02:35]} 10. Bxc4 {[%clk 0:02:59]}  Nd5 {[%clk 0:02:35]} 11. Bg3 {[%clk 0:02:59]}  N7f6 {[%clk 0:02:28]} 12. O-O {[%clk 0:02:58]}  Bd6 {[%clk 0:02:25]} 13. Ne5 {[%clk 0:02:50]}  Nxc3 {[%clk 0:02:17]} 14. bxc3 {[%clk 0:02:47]}  Ne4 {[%clk 0:02:16]} 15. Bf4 {[%clk 0:02:44]}  Nf6 {[%clk 0:02:02]} 16. Bb3 {[%clk 0:02:36]}  c5 {[%clk 0:01:43]} 17. h3 {[%clk 0:02:23]}  b6 {[%clk 0:01:42]} 18. Qf3 {[%clk 0:02:23]}  Ba6 {[%clk 0:01:35]} 19. Rfd1 {[%clk 0:02:23]}  Qc7 {[%clk 0:01:31]} 20. Bxh6 {[%clk 0:02:04]}  Bxe5 {[%clk 0:01:16]} 21. dxe5 {[%clk 0:01:14]}  Qxe5 {[%clk 0:01:12]} 22. Bf4 {[%clk 0:01:14]}  Qe4 {[%clk 0:01:06]} 23. Bg5 {[%clk 0:01:04]}  Qxf3 {[%clk 0:01:00]} 24. gxf3 {[%clk 0:01:05]}  c4 {[%clk 0:00:47]} 25. Bc2 {[%clk 0:01:03]}  Nd5 {[%clk 0:00:47]} 26. Be4 {[%clk 0:01:02]}  f6 {[%clk 0:00:41]} 27. Rxd5 {[%clk 0:00:52]}  exd5 {[%clk 0:00:34]} 28. Bxd5+ {[%clk 0:00:53]}  Kh7 {[%clk 0:00:35]} 29. Bxa8 {[%clk 0:00:54]}  fxg5 {[%clk 0:00:35]} 30. Be4+ {[%clk 0:00:53]}  Kh6 {[%clk 0:00:33]} 31. Rd1 {[%clk 0:00:53]}  Rf6 {[%clk 0:00:32]} 32. Rd7 {[%clk 0:00:52]}  b5 {[%clk 0:00:27]} 33. Rxa7 {[%clk 0:00:52]}  Rb6 {[%clk 0:00:27]} 34. Kh2 {[%clk 0:00:46]}  g6 {[%clk 0:00:24]} 35. Kg3 {[%clk 0:00:46]}  Bc8 {[%clk 0:00:20]} 36. Rc7 {[%clk 0:00:44]}  Bf5 {[%clk 0:00:17]} 37. Rc5 {[%clk 0:00:44]}  Bd7 {[%clk 0:00:13]} 38. Rd5 {[%clk 0:00:36]}  Bc6 {[%clk 0:00:11]} 39. Rd6 {[%clk 0:00:36]}  Bxe4 {[%clk 0:00:09]} 40. Rxb6 {[%clk 0:00:37]}  b4 {[%clk 0:00:09]} 41. Rxb4 {[%clk 0:00:37]}  Bd3 {[%clk 0:00:09]} 42. a4 {[%clk 0:00:37]} 1-0


[Site "https://www.chess.com"]